fUSD/lending_fUSD_20240907
["ID","MTS","AMOUNT","RATE_DAILY","PERIOD"]
[337524527,1725735064445,-1412.08,0.00014997,2]
[337524528,1725735064455,-500.0,0.00014997,2]
[337524529,1725735064464,-500.0,0.00014997,2]
[337524530,1725735064474,-500.0,0.00014997,2]
[337524531,1725735064484,-2633.77,0.00014997,2]
[337524532,1725735064494,-2633.77,0.00014997,2]
[337524533,1725735064503,-2633.77,0.00014997,2]
[337524534,1725735064513,-2633.77,0.00014997,2]
[337524535,1725735064523,-5390.26,0.00014997,2]
[337524536,1725735064532,-5390.26,0.00014997,2]
[337524537,1725735064541,-5390.26,0.00014997,2]
[337524538,1725735064551,-5390.26,0.00014997,2]
[337524539,1725735064561,-500.0,0.00014997,2]
[337524540,1725735064570,-500.0,0.00014997,2]
[337524541,1725735064580,-500.0,0.00014997,2]
[337524542,1725735064590,-1066.78,0.00014997,2]
[337524543,1725735064599,-1066.78,0.00014997,2]
[337524544,1725735064608,-1066.78,0.00014997,2]
[337524545,1725735064618,-500.0,0.00014997,2]
[337524546,1725735064627,-500.0,0.00014997,2]
[337524547,1725735064637,-500.0,0.00014997,2]
[337524548,1725735064647,-500.0,0.00014997,2]
[337524549,1725735064656,-500.0,0.00014997,2]
[337524550,1725735064665,-1871.71,0.00014997,2]
[337524551,1725735064675,-1871.71,0.00014997,2]
[337524552,1725735064684,-1871.71,0.00014997,2]
[337524553,1725735064693,-768.76,0.00014997,2]
[337524554,1725735064702,-1871.71,0.00014997,2]
[337524555,1725735064712,-768.76,0.00014997,2]
[337524556,1725735064721,-768.76,0.00014997,2]
[337524557,1725735064730,-768.76,0.00014997,2]
[337524558,1725735064739,-500.0,0.00014997,2]
[337524559,1725735064749,-500.0,0.00014997,2]
[337524560,1725735064758,-500.0,0.00014997,2]
[337524561,1725735064768,-2174.91,0.00014997,2]
[337524562,1725735064778,-2174.91,0.00014997,2]
[337524563,1725735064787,-2174.91,0.00014997,2]
[337524564,1725735064797,-2174.91,0.00014997,2]
[337524565,1725735064806,-500.0,0.00014997,2]
[337524566,1725735064816,-500.0,0.00014997,2]
[337524567,1725735064826,-500.0,0.00014997,2]
[337524568,1725735064835,-500.0,0.00014997,2]
[337524569,1725735064845,-500.0,0.00014997,2]
[337524570,1725735064855,-500.0,0.00014997,2]
[337524571,1725735064865,-500.0,0.00014997,2]
[337524572,1725735064874,-507.11,0.00014997,2]
[337524573,1725735064883,-507.11,0.00014997,2]
[337524574,1725735064893,-507.11,0.00014997,2]
[337524575,1725735064903,-507.11,0.00014997,2]
[337524576,1725735064912,-1028.07,0.00014997,2]
[337524577,1725735064921,-507.11,0.00014997,2]
[337524578,1725735064931,-1028.07,0.00014997,2]
[337524579,1725735065040,-1028.07,0.00014997,2]
[337524580,1725735065050,-1109.76,0.00014997,2]
[337524581,1725735065060,-1109.76,0.00014997,2]
[337524582,1725735065071,-1109.76,0.00014997,2]
[337524583,1725735065082,-665.06,0.00014997,2]
[337524584,1725735065093,-1109.76,0.00014997,2]
[337524585,1725735065103,-665.06,0.00014997,2]
[337524586,1725735065114,-665.06,0.00014997,2]
[337524587,1725735065123,-1109.76,0.00014997,2]
[337524588,1725735065132,-665.06,0.00014997,2]
[337524589,1725735065142,-3961.39,0.00014997,2]
[337524590,1725735065152,-3961.39,0.00014997,2]
[337524591,1725735065163,-3961.39,0.00014997,2]
[337524592,1725735065172,-3961.39,0.00014997,2]
[337524593,1725735065181,-500.0,0.00014997,2]
[337524594,1725735065190,-500.0,0.00014997,2]
[337524595,1725735065199,-500.0,0.00014997,2]
[337524596,1725735065208,-20732.68513294,0.00014998,2]
[337524597,1725735065217,-500.0,0.00014998,2]
[337524598,1725735065226,-500.0,0.00014998,2]
[337524599,1725735065237,-500.0,0.00014998,2]
[337524600,1725735065246,-500.0,0.00014998,2]
[337524601,1725735065256,-500.0,0.00014998,2]
[337524602,1725735065265,-500.0,0.00014998,2]
[337524603,1725735065274,-500.0,0.00014998,2]
[337524604,1725735065282,-500.0,0.00014998,2]
[337524605,1725735065291,-500.0,0.00014998,2]
[337524606,1725735065300,-500.0,0.00014998,2]
[337524607,1725735065310,-361.0,0.00014998,2]
[337524608,1725735065319,-632.59,0.00014998,2]
[337524609,1725735065329,-632.59,0.00014998,2]
[337524610,1725735065338,-632.59,0.00014998,2]
[337524611,1725735065347,-632.59,0.00014998,2]
[337524612,1725735065356,-632.59,0.00014998,2]
[337524613,1725735065365,-632.59,0.00014998,2]
[337524614,1725735065375,-1752.91,0.00014998,2]
[337524615,1725735065384,-1752.91,0.00014998,2]
[337524616,1725735065394,-1752.91,0.00014998,2]
[337524617,1725735065403,-1752.91,0.00014998,2]
[337524618,1725735065413,-1752.91,0.00014998,2]
[337524619,1725735065422,-1752.91,0.00014998,2]
[337524620,1725735065432,-330.72,0.00014998,2]
[337524621,1725735065443,-500.0,0.00014998,2]
[337524622,1725735065452,-500.0,0.00014998,2]
[337524623,1725735065461,-500.0,0.00014998,2]
[337524624,1725735065470,-500.0,0.00014998,2]
[337524625,1725735065480,-500.0,0.00014998,2]
[337524626,1725735065490,-500.0,0.00014998,2]
[337524627,1725735065499,-527.07,0.00014998,2]
[337524628,1725735065508,-527.07,0.00014998,2]
[337524629,1725735065518,-527.07,0.00014998,2]
[337524630,1725735065527,-527.07,0.00014998,2]
[337524631,1725735065536,-527.07,0.00014998,2]
[337524632,1725735065546,-527.07,0.00014998,2]
[337524633,1725735065555,-1606.96,0.00014998,2]
[337524634,1725735065564,-1606.96,0.00014998,2]
[337524635,1725735065573,-1606.96,0.00014998,2]
[337524636,1725735065583,-1606.96,0.00014998,2]
[337524637,1725735065592,-1606.96,0.00014998,2]
[337524638,1725735065602,-1606.96,0.00014998,2]
[337524639,1725735065611,-500.0,0.00014998,2]
[337524640,1725735065621,-500.0,0.00014998,2]
[337524641,1725735065630,-500.0,0.00014998,2]
[337524642,1725735065639,-560.21867254,0.00014998,2]
[337524643,1725735065649,-1178.48,0.00014998,2]
[337524644,1725735065658,-1178.48,0.00014998,2]
[337524645,1725735065668,-1178.48,0.00014998,2]
[337524646,1725735065677,-1178.48,0.00014998,2]
[337524647,1725735065686,-1178.48,0.00014998,2]
[337524648,1725735065695,-1178.48,0.00014998,2]
[337524649,1725735065705,-944.82,0.00014998,2]
[337524650,1725735065715,-944.82,0.00014998,2]
[337524651,1725735065724,-944.82,0.00014998,2]
[337524652,1725735065734,-944.82,0.00014998,2]
[337524653,1725735065744,-944.82,0.00014998,2]
[337524654,1725735065754,-944.82,0.00014998,2]
[337524655,1725735065763,-257.98808756,0.00014998,2]
[337524656,1725735065773,-500.0,0.00014998,2]
[337524657,1725735065782,-500.0,0.00014998,2]
[337524658,1725735065791,-500.0,0.00014998,2]
[337524659,1725735065800,-500.0,0.00014998,2]
[337524660,1725735065810,-462.02552291,0.00014998,2]
[337524661,1725735065819,-1170.95,0.00014998,2]
[337524662,1725735065829,-1170.95,0.00014998,2]
[337524663,1725735065838,-1170.95,0.00014998,2]
[337524664,1725735065847,-1170.95,0.00014998,2]
[337524665,1725735065857,-1170.95,0.00014998,2]
[337524666,1725735065867,-1170.95,0.00014998,2]
[337524667,1725735065878,-2806.11,0.00014998,2]
[337524668,1725735065888,-2806.11,0.00014998,2]
[337524669,1725735065899,-2806.11,0.00014998,2]
[337524670,1725735065909,-2806.11,0.00014998,2]
[337524671,1725735065919,-2806.11,0.00014998,2]
[337524672,1725735065930,-2806.11,0.00014998,2]
[337524673,1725735065940,-1319.31,0.00014998,2]
[337524674,1725735065949,-1319.31,0.00014998,2]
[337524675,1725735065959,-1319.31,0.00014998,2]
[337524676,1725735065970,-1319.31,0.00014998,2]
[337524677,1725735065979,-1319.31,0.00014998,2]
[337524678,1725735065989,-1319.31,0.00014998,2]
[337524679,1725735065999,-707.83,0.00014998,2]
[337524680,1725735066008,-707.83,0.00014998,2]
[337524681,1725735066018,-707.83,0.00014998,2]
[337524682,1725735066028,-707.83,0.00014998,2]
[337524683,1725735066037,-707.83,0.00014998,2]
[337524684,1725735066046,-707.83,0.00014998,2]
[337524685,1725735066055,-500.0,0.00014998,2]
[337524686,1725735066065,-500.0,0.00014998,2]
[337524687,1725735066076,-500.0,0.00014998,2]
[337524688,1725735066088,-500.0,0.00014998,2]
[337524689,1725735066098,-500.0,0.00014998,2]
[337524690,1725735066109,-500.0,0.00014998,2]
[337524691,1725735066119,-547.07,0.00014998,2]
[337524692,1725735066128,-547.07,0.00014998,2]
[337524693,1725735066139,-547.07,0.00014998,2]
[337524694,1725735066149,-547.07,0.00014998,2]
[337524695,1725735066164,-500.0,0.00014998,2]
[337524696,1725735066174,-500.0,0.00014998,2]
[337524697,1725735066189,-547.07,0.00014998,2]
[337524698,1725735066200,-500.0,0.00014998,2]
[337524699,1725735066211,-547.07,0.00014998,2]
[337524700,1725735066221,-500.0,0.00014998,2]
[337524701,1725735066231,-500.0,0.00014998,2]
[337524702,1725735066241,-500.0,0.00014998,2]
[337524703,1725735066250,-894.7,0.00014998,2]
[337524704,1725735066259,-894.7,0.00014998,2]
[337524705,1725735066268,-894.7,0.00014998,2]
[337524706,1725735066278,-894.7,0.00014998,2]
[337524707,1725735066287,-894.7,0.00014998,2]
[337524708,1725735066297,-894.7,0.00014998,2]
[337524709,1725735066306,-589.81,0.00014998,2]
[337524710,1725735066319,-589.81,0.00014998,2]
[337524711,1725735066328,-589.81,0.00014998,2]
[337524712,1725735066338,-589.81,0.00014998,2]
[337524713,1725735066347,-589.81,0.00014998,2]
[337524714,1725735066356,-589.81,0.00014998,2]
[337524715,1725735066366,-500.0,0.00014998,2]
[337524716,1725735066376,-1228.17,0.00014998,2]
[337524717,1725735066385,-1228.17,0.00014998,2]
[337524718,1725735066394,-1228.17,0.00014998,2]
[337524719,1725735066403,-1228.17,0.00014998,2]
[337524720,1725735066413,-1228.17,0.00014998,2]
[337524721,1725735066423,-500.0,0.00014998,2]
[337524722,1725735066432,-1228.17,0.00014998,2]
[337524723,1725735066441,-458.44,0.00014998,2]
[337524724,1725735066450,-500.0,0.00014998,2]
[337524725,1725735066459,-500.0,0.00014998,2]
[337524726,1725735066468,-500.0,0.00014998,2]
[337524727,1725735066478,-500.0,0.00014998,2]
[337524728,1725735066486,-500.0,0.00014998,2]
[337524729,1725735066496,-500.0,0.00014998,2]
[337524730,1725735066508,-500.0,0.00014998,2]
[337524731,1725735066517,-500.0,0.00014998,2]
[337524732,1725735066528,-500.0,0.00014998,2]
[337524733,1725735066538,-495.27288052,0.00014998,2]
[337524734,1725735066548,-1109.35,0.00014998,2]
[337524735,1725735066559,-1109.35,0.00014998,2]
[337524736,1725735066568,-1109.35,0.00014998,2]
[337524737,1725735066578,-1109.35,0.00014998,2]
[337524738,1725735066587,-1109.35,0.00014998,2]
[337524739,1725735066596,-1109.35,0.00014998,2]
[337524740,1725735066605,-500.0,0.00014998,2]
[337524741,1725735066616,-395.86,0.00014998,2]
[337524742,1725735066626,-500.0,0.00014998,2]
[337524743,1725735066635,-500.0,0.00014998,2]
[337524744,1725735066644,-500.0,0.00014998,2]
[337524745,1725735066653,-500.0,0.00014998,2]
[337524746,1725735066662,-399.57,0.00014998,2]
[337524747,1725735066671,-1029.63,0.00014998,2]
[337524748,1725735066680,-1029.63,0.00014998,2]
[337524749,1725735066690,-1029.63,0.00014998,2]
[337524750,1725735066699,-1029.63,0.00014998,2]
[337524751,1725735066709,-1029.63,0.00014998,2]
[337524752,1725735066718,-1029.63,0.00014998,2]
[337524753,1725735066727,-500.0,0.00014998,2]
[337524754,1725735066736,-375.38,0.00014998,2]
[337524755,1725735066746,-582.03,0.00014998,2]
[337524756,1725735066755,-582.03,0.00014998,2]
[337524757,1725735066764,-582.03,0.00014998,2]
[337524758,1725735066773,-582.03,0.00014998,2]
[337524759,1725735066782,-582.03,0.00014998,2]
[337524760,1725735066792,-582.03,0.00014998,2]
[337524761,1725735066900,-1456.05,0.00014998,2]
[337524762,1725735066911,-1456.05,0.00014998,2]
[337524763,1725735066921,-1456.05,0.00014998,2]
[337524764,1725735066931,-1456.05,0.00014998,2]
[337524765,1725735066940,-1456.05,0.00014998,2]
[337524766,1725735066951,-1456.05,0.00014998,2]
[337524767,1725735066962,-500.0,0.00014998,2]
[337524768,1725735066974,-500.0,0.00014998,2]
[337524769,1725735066985,-500.0,0.00014998,2]
[337524770,1725735066995,-500.0,0.00014998,2]
[337524771,1725735067005,-500.0,0.00014998,2]
[337524772,1725735067015,-500.0,0.00014998,2]
[337524773,1725735067025,-578.78,0.00014998,2]
[337524774,1725735067035,-578.78,0.00014998,2]
[337524775,1725735067044,-578.78,0.00014998,2]
[337524776,1725735067056,-578.78,0.00014998,2]
[337524777,1725735067066,-578.78,0.00014998,2]
[337524778,1725735067075,-578.78,0.00014998,2]
[337524779,1725735067086,-500.0,0.00014998,2]
[337524780,1725735067097,-685.52,0.00014998,2]
[337524781,1725735067107,-685.52,0.00014998,2]
[337524782,1725735067118,-685.52,0.00014998,2]
[337524783,1725735067127,-685.52,0.00014998,2]
[337524784,1725735067137,-685.52,0.00014998,2]
[337524785,1725735067146,-685.52,0.00014998,2]
[337524786,1725735067160,-500.0,0.00014998,2]
[337524787,1725735067169,-500.0,0.00014998,2]
[337524788,1725735067178,-500.0,0.00014998,2]
[337524789,1725735067187,-500.0,0.00014998,2]
[337524790,1725735067197,-500.0,0.00014998,2]
[337524791,1725735067206,-500.0,0.00014998,2]
[337524792,1725735067215,-500.0,0.00014998,2]
[337524793,1725735067225,-500.0,0.00014998,2]
[337524794,1725735067234,-1029.94,0.00014998,2]
[337524795,1725735067244,-500.0,0.00014998,2]
[337524796,1725735067254,-1029.94,0.00014998,2]
[337524797,1725735067264,-500.0,0.00014998,2]
[337524798,1725735067273,-1029.94,0.00014998,2]
[337524799,1725735067283,-500.0,0.00014998,2]
[337524800,1725735067294,-500.0,0.00014998,2]
[337524801,1725735067303,-1029.94,0.00014998,2]
[337524802,1725735067314,-500.0,0.00014998,2]
[337524803,1725735067324,-1029.94,0.00014998,2]
[337524804,1725735067334,-1029.94,0.00014998,2]
[337524805,1725735067346,-500.0,0.00014998,2]
[337524806,1725735067355,-500.0,0.00014998,2]
[337524807,1725735067366,-565.71,0.00014998,2]
[337524808,1725735067375,-924.94,0.00014998,2]
[337524809,1725735067386,-924.94,0.00014998,2]
[337524810,1725735067397,-924.94,0.00014998,2]
[337524811,1725735067406,-924.94,0.00014998,2]
[337524812,1725735067416,-924.94,0.00014998,2]
[337524813,1725735067427,-159.05136058,0.00014998,2]
[337524814,1725735067713,-765.88863942,0.00014998,2]
[337524815,1725735067727,-924.94,0.00014998,2]
[337524816,1725735067737,-216.24921558,0.00014998,2]
[337524817,1725735067753,-449.03088406,0.00014998,2]
[337524818,1725735067766,-259.65990036,0.00014998,2]
[337524819,1725735067775,-425.42311647,0.00014998,2]
[337524820,1725735067786,-418.43404489,0.00014998,2]
[337524821,1725735067816,-81.08283864,0.00014998,2]
[337524822,1725735067826,-924.94,0.00014998,2]
[337524823,1725735067835,-1021.49,0.00014998,2]
[337524824,1725735067844,-925.16394627,0.00014998,2]
[337524825,1725735067853,-1021.49,0.00014998,2]
[337524826,1725735067862,-1021.49,0.00014998,2]
[337524827,1725735067871,-1021.49,0.00014998,2]
[337524828,1725735067879,-1021.49,0.00014998,2]
[337524829,1725735067888,-1021.49,0.00014998,2]
[337524830,1725735067898,-1021.49,0.00014998,2]
[337524831,1725735067907,-1021.49,0.00014998,2]
[337524832,1725735067916,-1021.49,0.00014998,2]
[337524833,1725735067926,-1021.49,0.00014998,2]
[337524834,1725735067935,-1021.65491624,0.00014998,2]
[337524835,1725735067944,-500.0,0.00014998,2]
[337524836,1725735067954,-500.0,0.00014998,2]
[337524837,1725735067963,-500.0,0.00014998,2]
[337524838,1725735067973,-500.0,0.00014998,2]
[337524839,1725735067982,-500.0,0.00014998,2]
[337524840,1725735067991,-500.0,0.00014998,2]
[337524841,1725735068002,-500.0,0.00014998,2]
[337524842,1725735068011,-291.4374869,0.00014998,2]
[337524843,1725735068023,-208.5625131,0.00014998,2]
[337524844,1725735068033,-500.0,0.00014998,2]
[337524845,1725735068042,-500.0,0.00014998,2]
[337524846,1725735068052,-500.0,0.00014998,2]
[337524847,1725735068062,-500.0,0.00014998,2]
[337524848,1725735068071,-500.0,0.00014998,2]
[337524849,1725735068081,-500.0,0.00014998,2]
[337524850,1725735068091,-500.0,0.00014998,2]
[337524851,1725735068101,-500.0,0.00014998,2]
[337524852,1725735068110,-94.33316088,0.00014998,2]
[337524853,1725735068132,-335.93930447,0.00014998,2]
[337524854,1725735068777,-531.0,0.00014794,2]
[337524855,1725735068787,-502.13290003,0.00014794,2]
[337524856,1725735068796,-500.0,0.00014794,2]
[337524857,1725735068806,-500.0,0.00014794,2]
[337524858,1725735068815,-500.0,0.00014794,2]
[337524859,1725735068825,-500.0,0.00014794,2]
[337524860,1725735068834,-500.0,0.00014794,2]
[337524861,1725735068844,-500.0,0.00014794,2]
[337524862,1725735068853,-500.0,0.00014794,2]
[337524863,1725735068862,-500.0,0.00014794,2]
[337524864,1725735068871,-500.0,0.00014887,2]
[337524865,1725735068880,-500.0,0.0001499,2]
[337524866,1725735068890,-500.0,0.00014994,2]
[337524867,1725735068899,-69.72753465,0.00014998,2]
[337524868,1725735068908,-1248.9,0.00014998,2]
[337524869,1725735068920,-1248.9,0.00014998,2]
[337524870,1725735068929,-1248.9,0.00014998,2]
[337524871,1725735068938,-1222.91630436,0.00014998,2]
[337524872,1725735068950,-25.98369564,0.00014998,2]
[337524873,1725735068960,-1248.9,0.00014998,2]
[337524874,1725735068970,-1248.9,0.00014998,2]
[337524875,1725735068979,-202.23939172,0.00014998,2]
[337524876,1725735209797,500.0,0.000267,120]
[337524877,1725735214674,200.0,0.000247,120]
[337524878,1725735310082,150.0,0.00012,2]
[337524879,1725735310111,150.0,0.00012,2]
[337524880,1725735310137,150.0,0.00012,2]
[337524881,1725735310163,150.0,0.00012,2]
[337524882,1725735310189,150.0,0.00012,2]
[337524883,1725735310217,41.41,0.00012,2]
[337524884,1725735615404,150.0,0.00010959,2]
[337524885,1725735615430,14.46,0.00010959,2]
[337524886,1725735805380,500.0,0.00025,120]
[337524887,1725735805921,500.0,0.00027,120]
[337524888,1725735809603,150.0,0.00011853,2]
[337524889,1725735809623,150.0,0.00011853,2]
[337524890,1725735809643,150.0,0.00011853,2]
[337524891,1725735809663,150.0,0.00011853,2]
[337524892,1725735809684,150.0,0.00011853,2]
[337524893,1725735809706,49.74,0.00011853,2]
[337524900,1725736052111,150.0,0.00011,2]
[337524901,1725736052132,150.0,0.00011,2]
[337524902,1725736052152,150.0,0.00011,2]
[337524903,1725736052172,150.0,0.00011,2]
[337524904,1725736052191,150.0,0.00011,2]
[337524905,1725736096606,150.0,0.00010959,2]
[337524906,1725736096629,7.88,0.00010959,2]
[337525005,1725736162387,150.0,0.00011949,2]
[337525006,1725736162406,83.39425541,0.00011949,2]
[337525016,1725736232359,-800.0,0.00013,2]
[337525017,1725736232370,-420.1107,0.00013693,2]
[337525018,1725736232380,-1000.0,0.00013754,2]
[337525019,1725736232391,-244.04589793,0.00013763,2]
[337525020,1725736232403,-5.95410207,0.00013763,2]
[337525021,1725736232411,-1888.91321356,0.00013776,2]
[337525022,1725736232426,-5710.98748693,0.00013776,2]
[337525023,1725736232462,-1680.50163246,0.00013776,2]
[337525024,1725736232621,-2354.73262451,0.00013776,2]
[337525025,1725736232642,-453.51,0.00013776,2]
[337525026,1725736232655,-3989.45713517,0.00013776,2]
[337525027,1725736232668,-7821.89790737,0.00013776,2]
[337525028,1725736232680,-310.01,0.00013776,2]
[337525030,1725736232690,-250.0,0.00013776,2]
[337525032,1725736232700,-150.0,0.00013807,2]
[337525035,1725736232710,-221.97,0.00013882,2]
[337525037,1725736232721,-173.13,0.00014032,2]
[337525039,1725736232732,-799.74,0.00014116,2]
[337525040,1725736232742,-150.0,0.00014176,2]
[337525041,1725736232752,-2983.79799324,0.00014192,2]
[337525042,1725736232762,-159.12,0.00014513,2]
[337525043,1725736232773,-475.39302267,0.00014538,2]
[337525044,1725736232785,-858.16390953,0.00014538,2]
[337525045,1725736238529,-836.78061157,0.00014538,2]
[337525046,1725736238544,-833.03550597,0.00014538,2]
[337525047,1725736238566,-11974.06695026,0.00014538,2]
[337525048,1725736238575,-150.0,0.00014544,2]
[337525049,1725736238586,-14281.33114962,0.00014584,2]
[337525050,1725736238601,-2515.47398675,0.00014584,2]
[337525051,1725736238620,-5077.11281944,0.00014584,2]
[337525052,1725736238631,-1044.62063914,0.00014584,2]
[337525053,1725736238643,-3997.69464045,0.00014584,2]
[337525079,1725736240523,-265.6149646,0.00014584,2]
[337525080,1725736240534,-193.2808603,0.00014694,2]
[337525081,1725736240544,-1000.0,0.000147,2]
[337525082,1725736240553,-500.0,0.00014794,2]
[337525083,1725736240562,-468.46,0.00014794,2]
[337525084,1725736240754,-1080.47240027,0.00014794,2]
[337525085,1725736240764,-360.37177483,0.00014794,2]
[337525086,1725736240786,-201.53183302,0.00014794,2]
[337525087,1725736240795,-539.55732133,0.00014794,2]
[337525088,1725736240805,-2.44313809,0.00014794,2]
[337525089,1725736240816,-424.16972807,0.00014794,2]
[337525090,1725736240829,-73.38713384,0.00014794,2]
[337525091,1725736240838,-500.0,0.00014794,2]
[337525092,1725736240849,-500.0,0.00014794,2]
[337525093,1725736240858,-602.61,0.00014794,2]
[337525094,1725736240867,-500.0,0.00014794,2]
[337525095,1725736240877,-500.0,0.00014794,2]
[337525096,1725736240886,-500.0,0.00014794,2]
[337525097,1725736240895,-500.0,0.00014794,2]
[337525098,1725736240904,-29.05286616,0.00014794,2]
[337525099,1725736240938,-470.94713384,0.00014794,2]
[337525100,1725736240947,-500.0,0.00014794,2]
[337525101,1725736240957,-282.76949098,0.00014794,2]
[337525102,1725736240966,-314.57890349,0.00014794,2]
[337525103,1725736240982,-185.42109651,0.00014794,2]
[337525104,1725736240991,-431.70929118,0.00014794,2]
[337525105,1725736241000,-315.44153267,0.00014794,2]
[337525106,1725736241011,-184.55846733,0.00014794,2]
[337525107,1725736241020,-500.0,0.00014794,2]
[337525108,1725736241031,-500.0,0.00014794,2]
[337525109,1725736241040,-183.20712598,0.00014794,2]
[337525110,1725736241051,-316.79287402,0.00014794,2]
[337525111,1725736241060,-311.42056146,0.00014794,2]
[337525112,1725736241069,-500.0,0.00014794,2]
[337525113,1725736241078,-500.0,0.00014794,2]
[337525114,1725736241087,-245.08656452,0.00014794,2]
[337525115,1725736241098,-254.91343548,0.00014794,2]
[337525116,1725736241107,-500.0,0.00014794,2]
[337525117,1725736241116,-500.0,0.00014794,2]
[337525118,1725736241126,-500.0,0.00014794,2]
[337525119,1725736241135,-500.0,0.00014794,2]
[337525120,1725736241144,-500.0,0.00014794,2]
[337525121,1725736241153,-749.23086452,0.00014794,2]
[337525123,1725736241172,-365.55913548,0.00014794,2]
[337525125,1725736241181,-1114.79,0.00014794,2]
[337525126,1725736241190,-500.0,0.00014794,2]
[337525127,1725736241200,-500.0,0.00014794,2]
[337525128,1725736241209,-516.74,0.00014794,2]
[337525129,1725736241219,-500.0,0.00014794,2]
[337525130,1725736241228,-500.0,0.00014794,2]
[337525131,1725736241239,-500.0,0.00014794,2]
[337525132,1725736241251,-500.0,0.00014794,2]
[337525133,1725736241261,-500.0,0.00014794,2]
[337525134,1725736241270,-500.0,0.00014794,2]
[337525135,1725736241281,-359.14722578,0.00014794,2]
[337525136,1725736241294,-140.85277422,0.00014794,2]
[337525137,1725736241304,-485.84018858,0.00014794,2]
[337525138,1725736241316,-322.56152394,0.00014794,2]
[337525139,1725736243345,-22.00828748,0.00014794,2]
[337525140,1725736243355,-435.45390686,0.00014794,2]
[337525141,1725736243367,-265.6000002,0.00014794,2]
[337525142,1725736243574,-129.35609294,0.00014794,2]
[337525143,1725736243586,-500.0,0.00014794,2]
[337525144,1725736243596,-23.95661398,0.00014794,2]
[337525145,1725736243612,-377.11693109,0.00014794,2]
[337525146,1725736243625,-98.92645493,0.00014794,2]
[337525147,1725736243635,-500.0,0.00014794,2]
[337525148,1725736243646,-480.39272507,0.00014794,2]
[337525150,1725736246682,-65.61727493,0.00014794,2]
[337525151,1725736246691,-500.0,0.00014794,2]
[337525152,1725736246700,-102.69115653,0.00014794,2]
[337525153,1725736246711,-397.30884347,0.00014794,2]
[337525154,1725736246720,-500.0,0.00014794,2]
[337525155,1725736246729,-75.9402628,0.00014794,2]
[337525156,1725736246748,-424.0597372,0.00014794,2]
[337525157,1725736246757,-500.0,0.00014794,2]
[337525158,1725736246766,-418.42836114,0.00014794,2]
[337525159,1725736380932,794.69,0.00012,2]
[337525163,1725737005998,509.897546,0.00026225,120]
[337525164,1725737008824,202.10563,0.00024225,120]
[337525169,1725737155771,150.0,6.94e-05,2]
[337525170,1725737155794,450.0,6.94e-05,2]
[337525171,1725737156825,150.0,0.00011991,2]
[337525172,1725737156849,150.0,0.00011991,2]
[337525173,1725737156870,150.0,0.00011991,2]
[337525174,1725737156891,150.0,0.00011991,2]
[337525175,1725737156916,150.0,0.00011991,2]
[337525176,1725737156938,32.41,0.00011991,2]
[337525177,1725737173240,344.23,0.00010959,2]
[337525188,1725737326223,1240.66173304,0.0002,120]
[337525204,1725737431489,-163.46,0.0001299,2]
[337525206,1725737431498,-95.30851609,0.0001299,2]